bitfinex/quotes_BTCUSD_20240918
["timestamp","ask_amount","ask_price","bid_price","bid_amount"]
[1726684845490,0.32687167,61043.0,61042.0,0.000822]
[1726684845695,0.67750867,61043.0,61042.0,0.000822]
[1726684845925,0.163886,61018.0,61017.0,0.24573043]
[1726684846132,0.16305367,61018.0,61017.0,0.24573043]
[1726684846373,0.98248367,61018.0,61017.0,0.00463431]
[1726684846585,0.18605367,61018.0,61001.0,0.002]
[1726684846792,0.27573043,61036.0,60998.0,0.24573043]
[1726684846793,0.16305367,61015.0,61005.0,0.28441793]
[1726684847017,0.16305367,61015.0,61007.0,0.0386875]
[1726684847224,0.16305367,61015.0,61014.0,0.002]
[1726684847443,0.16305367,61015.0,61013.0,0.002]
[1726684847653,0.98342922,61031.0,61022.0,0.0386875]
[1726684847860,0.98342922,61023.0,61022.0,0.002]
[1726684848108,0.98342922,61040.0,61032.0,0.0386875]
[1726684848350,0.98342922,61033.0,61032.0,0.2025355]
[1726684848636,1.14648289,61039.0,61037.0,0.0386875]
[1726684848847,0.163836,61037.0,61030.0,0.0386875]
[1726684849067,0.163836,61037.0,61025.0,0.002]
[1726684849068,0.16305367,61036.0,61027.0,0.0386875]
[1726684849302,0.001646,61046.0,61041.0,0.0386875]
[1726684849557,0.16305367,61042.0,61041.0,0.0386875]
[1726684849807,0.24737845,61046.0,61042.0,0.0386875]
[1726684850014,0.26305367,61043.0,61042.0,0.0386875]
[1726684850222,0.26305367,61043.0,61042.0,0.0406875]
[1726684850473,0.1,61043.0,61042.0,0.3045085]
[1726684850680,0.1,61043.0,61042.0,5.6821515]
[1726684850919,0.1,61043.0,61042.0,3.4947945]
[1726684851140,0.001646,61046.0,61045.0,0.9597545]
[1726684851373,1.0,61080.0,61067.0,0.0386875]
[1726684851583,0.163722,61079.0,61067.0,0.0386875]
[1726684851998,0.163722,61079.0,61062.0,0.163766]
[1726684851999,1.0,61080.0,61078.0,0.0086875]
[1726684852206,1.0,61080.0,61071.0,0.0386875]
[1726684852441,0.163727,61078.0,61073.0,0.0386875]
[1726684852696,0.16305367,61077.0,61073.0,0.0386875]
[1726684853328,0.16305367,61077.0,61067.0,0.0386875]
[1726684853580,0.16305367,61077.0,61073.0,0.0086875]
[1726684853813,0.16305367,61077.0,61074.0,0.00498344]
[1726684854057,0.16305367,61077.0,61073.0,0.0086875]
[1726684854058,0.16305367,61077.0,61073.0,0.0526875]
[1726684854289,0.16305367,61077.0,61073.0,0.0386875]
[1726684854940,0.16305367,61077.0,61070.0,0.0386875]
[1726684855146,0.16305367,61077.0,61073.0,0.0526875]
[1726684855364,1.0,61080.0,61079.0,0.2024095]
[1726684855563,1.0,61080.0,61079.0,0.5298535]
[1726684855774,0.0256733,61107.0,61098.0,0.0086875]
[1726684855986,1.14555236,61099.0,61098.0,0.0386875]
[1726684856216,1.14555236,61099.0,61097.0,0.002]
[1726684856217,1.14555236,61099.0,61093.0,0.002]
[1726684856425,1.14555236,61099.0,61089.0,0.0386875]
[1726684856426,0.40856892,61098.0,61089.0,0.0386875]
[1726684856632,0.163675,61097.0,61089.0,0.0386875]
[1726684856840,0.0001,61099.0,61087.0,0.0086875]
[1726684856841,0.32736,61095.0,61087.0,0.0086875]
[1726684857048,0.163691,61091.0,61088.0,0.9821414]
[1726684857255,0.163695,61089.0,61088.0,0.00475934]
[1726684857516,0.023,61082.0,61062.0,0.0086875]
[1726684857715,0.39300898,61083.0,61076.0,0.9821414]
[1726684857924,0.023,61088.0,61069.0,0.9821414]
[1726684858122,0.16305367,61081.0,61071.0,0.0386875]
[1726684858375,0.023,61080.0,61058.0,0.0086875]
[1726684858581,0.16377,61061.0,61060.0,0.9821414]
[1726684858787,0.023,61080.0,61060.0,0.9821414]
[1726684858987,0.16305367,61067.0,61057.0,0.0386875]
[1726684859187,0.327563,61057.0,61055.0,0.0086875]
[1726684859444,0.16305367,61056.0,61044.0,0.0086875]
[1726684859638,0.16305367,61051.0,61046.0,0.9821414]
[1726684859910,0.16305367,61051.0,61041.0,0.0386875]
[1726684860093,0.16305367,61051.0,61050.0,0.0386875]
[1726684860517,0.023,61050.0,61035.0,0.0386875]
[1726684860730,0.16305367,61045.0,61037.0,0.9821414]
[1726684860942,0.16305367,61045.0,61044.0,0.0386875]
[1726684861189,0.16305367,61045.0,61040.0,0.0386875]
[1726684861412,0.16305367,61045.0,61038.0,0.0386875]
[1726684861615,0.16305367,61045.0,61044.0,0.0386875]
[1726684861819,0.000823,61051.0,61041.0,0.002]
[1726684861820,0.000823,61051.0,61050.0,0.0386875]
[1726684862231,0.16387667,61051.0,61048.0,0.0386875]
[1726684862495,0.16305367,61050.0,61048.0,0.03]
[1726684862712,0.16305367,61050.0,61046.0,0.0386875]
[1726684862926,0.03,61045.0,61022.0,0.0386875]
[1726684863136,0.67757367,61035.0,61009.0,0.0086875]
[1726684863345,1.33293367,61035.0,61015.0,0.002]
[1726684863553,1.33293367,61035.0,61021.0,0.24576264]
[1726684864025,1.03095302,61035.0,61022.0,0.24576264]
[1726684864237,1.35863302,61035.0,61017.0,0.0086875]
[1726684864446,1.33293367,61035.0,61017.0,0.0386875]
[1726684864667,1.00525367,61035.0,61034.0,0.002646]
[1726684864888,1.00525367,61035.0,61034.0,0.001646]
[1726684865122,1.33293367,61035.0,61034.0,0.001646]
[1726684865951,0.18875401,61035.0,61034.0,0.0103335]
[1726684866158,0.35259401,61035.0,61034.0,0.001646]
[1726684866580,0.16305367,61035.0,61034.0,0.003646]
[1726684866799,0.16305367,61035.0,61034.0,0.001646]
[1726684867275,0.65457367,61035.0,61034.0,0.001646]
[1726684867479,0.32689367,61035.0,61034.0,0.001646]
[1726684867731,0.32689367,61035.0,61034.0,0.006646]
[1726684867967,0.16305367,61035.0,61034.0,0.001646]
[1726684868227,0.16305367,61035.0,61004.0,0.03]
[1726684868228,0.023,61034.0,61014.0,0.0386875]
[1726684868471,0.16305367,61023.0,61020.0,0.24576264]
[1726684868738,0.16305367,61023.0,61018.0,0.0386875]
[1726684869018,0.16305367,61023.0,61022.0,0.0386875]
[1726684869241,0.02569898,61033.0,61032.0,0.0386875]
[1726684869499,0.98326,61038.0,61037.0,0.0386875]
[1726684869746,1.14631367,61038.0,61026.0,0.0386875]
[1726684870015,0.163844,61034.0,61030.0,0.0086875]
[1726684870546,0.16305367,61032.0,61023.0,0.0386875]
[1726684870549,0.327708,61030.0,61014.0,0.001]
[1726684870795,0.491641,61020.0,61019.0,0.98326]
[1726684871069,0.163904,61011.0,61008.0,0.0386875]
[1726684871307,0.63302556,61011.0,61003.0,0.0386875]
[1726684871539,0.16305367,61011.0,61006.0,0.0086875]
[1726684871776,0.16305367,61011.0,61007.0,0.0386875]
[1726684871994,0.16305367,61011.0,61010.0,0.0095105]
[1726684872212,0.98326,61019.0,61018.0,0.0086875]
[1726684872441,0.16305367,61019.0,61018.0,0.0086875]
[1726684872893,0.16386,61028.0,61023.0,0.0086875]
[1726684873106,0.16305367,61027.0,61026.0,0.0086875]
[1726684873338,0.16305367,61027.0,61011.0,0.327807]
[1726684873339,0.02569911,61035.0,61029.0,0.0086875]
[1726684873551,0.02569911,61035.0,61034.0,0.0086875]
[1726684873770,0.02569911,61035.0,61019.0,0.0386875]
[1726684873992,0.44015298,61036.0,61021.0,0.0086875]
[1726684874285,0.0513125,61049.0,61023.0,0.0386875]
[1726684874286,0.327696,61033.0,61023.0,0.0386875]
[1726684874510,0.44015298,61030.0,61012.0,0.0086875]
[1726684874719,0.0213125,61038.0,61010.0,0.000823]
[1726684874720,0.491713,61011.0,61010.0,0.000823]
[1726684874925,0.44015298,61024.0,61010.0,0.000823]
[1726684875146,0.491713,61011.0,61010.0,0.000823]
[1726684875378,0.819522,61011.0,61010.0,0.000823]
[1726684875631,1.75053765,61011.0,61010.0,0.000823]
[1726684875849,0.491883,60990.0,60989.0,0.0031548]
[1726684876065,1.77393365,60990.0,60989.0,0.0031548]
[1726684876276,1.42301165,60990.0,60989.0,0.0031548]
[1726684876484,0.98285867,60990.0,60989.0,0.0031548]
[1726684876917,1.33378067,60990.0,60989.0,0.0031548]
[1726684877555,1.33378067,60990.0,60989.0,0.0026548]
[1726684877767,0.81986,60986.0,60980.0,0.000822]
[1726684878001,1.28307998,60981.0,60980.0,0.000822]
[1726684878208,1.77410465,60981.0,60980.0,0.000822]
[1726684878843,0.98298067,60981.0,60980.0,0.000822]
[1726684879058,1.77410465,60981.0,60980.0,0.000822]
[1726684879294,1.77410465,60981.0,60980.0,0.003822]
[1726684880131,1.79982399,60981.0,60980.0,0.003822]
[1726684880826,1.00870001,60981.0,60980.0,0.003822]
[1726684881034,1.00870001,60981.0,60980.0,0.000822]
[1726684881250,1.79982399,60981.0,60980.0,0.000822]
[1726684881466,0.68072901,60981.0,60980.0,0.003822]
[1726684881685,0.68072901,60981.0,60980.0,0.000822]
[1726684882129,0.02571934,60981.0,60980.0,0.2064975]
[1726684882342,0.02571934,60981.0,60980.0,0.04788784]
[1726684882557,0.24594397,60990.0,60989.0,0.0086875]
[1726684882558,0.40990497,60990.0,60989.0,0.0086875]
[1726684882771,0.491956,60981.0,60980.0,0.00920034]
[1726684882992,0.93210898,60981.0,60980.0,0.00120034]
[1726684883235,0.03,60997.0,60977.0,0.001648]
[1726684883236,0.44015298,60987.0,60977.0,0.001648]
[1726684883457,0.819967,60978.0,60977.0,0.001648]
[1726684883686,1.31100767,60978.0,60977.0,0.001648]
[1726684883895,1.66199467,60978.0,60977.0,0.001648]
[1726684884104,1.68771729,60978.0,60977.0,0.001648]
[1726684884324,1.35973029,60978.0,60977.0,0.001648]
[1726684884612,0.0213125,60962.0,60948.0,0.0089117]
[1726684884831,0.515174,60954.0,60948.0,0.0089117]
[1726684885048,0.492174,60954.0,60948.0,0.0089117]
[1726684885488,0.86901993,60954.0,60948.0,0.0089117]
[1726684885693,1.171406,60954.0,60948.0,0.0089117]
[1726684885966,0.164058,60954.0,60948.0,0.0089117]
[1726684886178,0.492174,60954.0,60948.0,0.0089117]
[1726684886603,0.02572988,60962.0,60957.0,0.0386875]
[1726684886828,0.02572988,60962.0,60961.0,0.0086875]
[1726684887040,0.02572988,60962.0,60961.0,0.6308045]
[1726684887276,0.24608923,60970.0,60969.0,0.0295]
[1726684887485,0.24608923,60970.0,60963.0,0.1]
[1726684887486,0.98405019,60983.0,60974.0,0.0381875]
[1726684887695,0.163987,60981.0,60974.0,0.0381875]
[1726684887911,1.31201319,60983.0,60974.0,0.0381875]
[1726684887912,0.98405019,60983.0,60974.0,0.0381875]
[1726684888118,0.98405019,60983.0,60966.0,0.1]
[1726684888119,0.164003,60975.0,60972.0,0.0381875]
[1726684888336,0.02571964,60991.0,60975.0,0.00556511]
[1726684888556,0.327992,60977.0,60973.0,0.0054219]
[1726684888770,0.44015298,60992.0,60974.0,0.98405019]
[1726684888980,0.98405019,60981.0,60966.0,0.0381875]
[1726684889196,0.98405019,60988.0,60974.0,0.01]
[1726684889403,1.31201419,60983.0,60974.0,0.01]
[1726684889630,0.327978,60980.0,60970.0,0.0381875]
[1726684889852,0.49104567,60977.0,60970.0,0.0086875]
[1726684890064,0.16305367,60971.0,60952.0,0.001644]
[1726684890275,0.164031,60964.0,60963.0,0.98405019]
[1726684890478,0.023,60963.0,60954.0,0.00479111]
[1726684890730,0.023,60963.0,60952.0,0.001644]
[1726684890731,0.164043,60960.0,60958.0,0.98405019]
[1726684891004,0.16405,60957.0,60952.0,0.001644]
[1726684891264,0.16305367,60964.0,60960.0,0.0381875]
[1726684891474,0.98405019,60976.0,60962.0,0.0381875]
[1726684891475,0.16305367,60963.0,60962.0,0.0381875]
[1726684891683,0.02572273,60972.0,60970.0,0.0381875]
[1726684891896,0.16305367,60971.0,60970.0,0.0381875]
[1726684892101,0.16305367,60971.0,60962.0,0.00479111]
[1726684892102,0.327924,60990.0,60979.0,0.0381875]
[1726684892332,0.18877412,60982.0,60976.0,0.0381875]
[1726684892533,0.18877412,60982.0,60979.0,0.0381875]
[1726684892748,0.327915,60992.0,60963.0,0.00328016]
[1726684892749,0.98405019,60995.0,60989.0,0.0381875]
[1726684892961,0.02571541,60991.0,60990.0,0.2021485]
[1726684893176,0.16305367,60994.0,60990.0,0.0381875]
[1726684893422,0.98405019,61008.0,60990.0,0.0381875]
[1726684893423,0.98405019,61014.0,61013.0,0.0381875]
[1726684893670,0.98405019,61021.0,61012.0,0.1]
[1726684893913,0.27153933,61013.0,60997.0,0.44015298]
[1726684894131,0.19305367,61012.0,60998.0,0.24583514]
[1726684894339,0.98352594,61011.0,60998.0,0.327879]
[1726684894554,0.03,61008.0,60993.0,0.16395]
[1726684894764,0.03,61007.0,60994.0,0.98352594]
[1726684894985,0.16305367,61006.0,60994.0,0.98352594]
[1726684895192,0.16305367,61006.0,60997.0,0.45415298]
[1726684895405,1.31129694,61019.0,60997.0,0.45415298]
[1726684895406,1.01352594,61012.0,60999.0,0.327873]
[1726684895618,0.98352594,61011.0,61009.0,0.44015298]
[1726684895824,0.02570272,61015.0,61014.0,0.919482]
[1726684896030,0.98352594,61019.0,61014.0,0.919482]
[1726684896031,0.98352594,61019.0,61018.0,0.263886]
[1726684896231,0.02569774,61024.0,61023.0,0.591617]
[1726684896486,0.98352594,61028.0,61026.0,0.163864]
[1726684896694,0.16326383,61027.0,61025.0,0.1]
[1726684896899,0.16305367,61026.0,61025.0,0.1]
[1726684897115,0.03,61018.0,61007.0,0.163914]
[1726684897319,0.16305367,61017.0,61015.0,0.98352594]
[1726684897603,0.03,61014.0,60994.0,0.60410098]
[1726684897816,0.03,61014.0,60985.0,0.000824]
[1726684897817,0.03,61009.0,61004.0,0.98352594]
[1726684898024,0.03,61020.0,61002.0,0.327857]
[1726684898238,0.98352594,61017.0,61006.0,0.44015298]
[1726684898443,0.98352594,61012.0,61007.0,5.05]
[1726684898645,0.16305367,61017.0,61016.0,0.002]
[1726684899508,0.16305367,61017.0,60994.0,0.327898]
[1726684899509,0.03,61008.0,60996.0,0.44215298]
[1726684899721,0.16305367,61007.0,61006.0,0.98352594]
[1726684899924,0.03,61006.0,60996.0,0.002]
[1726684900304,0.03,61006.0,60997.0,0.98352594]
[1726684900510,0.03,61006.0,61005.0,0.002]
[1726684900708,0.03,61006.0,60994.0,0.002]
[1726684900709,0.163923,61004.0,60994.0,0.002]
[1726684900909,0.163938,60999.0,60994.0,0.002]
[1726684901112,0.03,60992.0,60988.0,0.0009462]
[1726684901312,0.03,61008.0,60988.0,0.0009462]
[1726684901313,0.03,60990.0,60989.0,0.98352594]
[1726684901564,0.03,60990.0,60988.0,0.0009462]
[1726684901965,0.03,60992.0,60988.0,0.0009462]
[1726684902530,0.16305367,60991.0,60989.0,0.009]
[1726684902732,0.02571146,60997.0,60996.0,0.163945]
[1726684902931,0.02571146,60997.0,60990.0,0.49341395]
[1726684903133,0.27591575,61004.0,60991.0,2.468]
[1726684903366,0.03,61002.0,60992.0,0.163955]
[1726684903514,0.03,61000.0,60989.0,0.0085]
[1726684903719,0.03,61000.0,60989.0,0.1085]
[1726684903974,0.03,60994.0,60991.0,0.002]
[1726684904184,0.03,60989.0,60988.0,0.0079462]
[1726684904412,0.03,60989.0,60988.0,0.0009462]
[1726684904646,0.216963,60989.0,60988.0,0.0009462]
[1726684904898,1.200744,60989.0,60988.0,0.0009462]
[1726684905138,1.06158657,60989.0,60988.0,0.0009462]
[1726684905379,0.73365957,60989.0,60988.0,0.0009462]
[1726684905613,0.19305367,60989.0,60988.0,0.0149462]
[1726684905852,0.21876962,60989.0,60988.0,0.0149462]
[1726684906274,0.21876962,60989.0,60988.0,0.0169462]
[1726684906275,0.18876962,60989.0,60988.0,0.0169462]
[1726684906750,0.03,60992.0,60990.0,0.002]
[1726684906955,0.43900168,60991.0,60990.0,0.002]
[1726684907155,0.19305367,60991.0,60990.0,0.002]
[1726684907407,0.19305367,60991.0,60988.0,0.0169462]
[1726684907612,0.357927,60989.0,60988.0,0.0009462]
[1726684907856,0.35701667,60989.0,60988.0,0.0009462]
[1726684908038,0.19305367,60989.0,60988.0,0.0009462]
[1726684908207,1.03587067,60989.0,60988.0,0.0009462]
[1726684908413,1.69172467,60989.0,60988.0,0.0009462]
[1726684908587,1.36379767,60989.0,60988.0,0.0009462]
[1726684909331,0.21877119,60989.0,60988.0,0.0009462]
[1726684909540,0.22041919,60989.0,60988.0,0.0009462]
[1726684910079,0.38438219,60989.0,60988.0,0.0009462]
[1726684910299,1.04023619,60989.0,60988.0,0.0009462]
[1726684910482,1.36816319,60989.0,60988.0,0.0009462]
[1726684910701,1.36816319,60989.0,60988.0,0.0149462]
[1726684910903,0.81986,60986.0,60969.0,0.24594801]
[1726684911107,1.69180167,60986.0,60969.0,0.24594801]
[1726684911311,1.36385767,60986.0,60969.0,0.24594801]
[1726684911517,1.36385767,60986.0,60977.0,0.24594801]
[1726684911756,1.03591367,60986.0,60977.0,0.24594801]
[1726684911955,1.03591367,60986.0,60969.0,0.24594801]
[1726684912154,0.38002567,60986.0,60969.0,0.24594801]
[1726684912566,1.03591367,60986.0,60985.0,0.008824]
[1726684912766,0.70796967,60986.0,60985.0,0.008824]
[1726684913014,1.36385767,60986.0,60985.0,0.008824]
[1726684913375,0.52099767,60986.0,60985.0,0.008824]
[1726684913582,0.35702567,60986.0,60985.0,0.008824]
[1726684913786,0.19305367,60986.0,60985.0,0.008824]
[1726684914189,0.70796967,60986.0,60985.0,0.008824]
[1726684914394,0.70796967,60986.0,60985.0,0.000824]
[1726684914646,1.03591367,60986.0,60985.0,0.000824]
[1726684915072,1.00545166,60986.0,60985.0,0.000824]
[1726684915344,0.35056366,60986.0,60985.0,0.007824]
[1726684915538,0.16359166,60986.0,60985.0,0.007824]
[1726684915766,0.001,60986.0,60985.0,0.007824]
[1726684915984,0.001,60986.0,60985.0,0.01421138]
[1726684916442,0.001,60986.0,60985.0,0.83408338]
[1726684916908,0.001,60986.0,60985.0,0.50613438]
[1726684917120,0.001648,60989.0,60988.0,0.002]
[1726684917336,0.16470167,60989.0,60988.0,0.002]
[1726684917549,0.16470167,60989.0,60988.0,0.00652291]
[1726684917755,0.16470167,60989.0,60988.0,0.002]
[1726684918459,0.16470167,60989.0,60988.0,0.00452291]
[1726684918678,0.163972,60986.0,60985.0,0.007824]
[1726684918902,0.65496967,60986.0,60985.0,0.007824]
[1726684919121,0.67796967,60986.0,60985.0,0.007824]
[1726684919414,1.33385767,60986.0,60985.0,0.000824]
[1726684919625,1.66180167,60986.0,60985.0,0.000824]
[1726684919836,1.96430167,60986.0,60985.0,0.000824]
[1726684920055,1.63635767,60986.0,60985.0,0.000824]
[1726684920572,1.63635767,60986.0,60963.0,0.0055414]
[1726684920573,0.023,60952.0,60937.0,0.002]
[1726684920809,0.1,60965.0,60937.0,0.002]
[1726684921013,0.023,60964.0,60939.0,0.0045067]
[1726684921230,0.023,60952.0,60939.0,0.0045067]
[1726684921439,0.328096,60958.0,60937.0,0.002]
[1726684921440,0.023,60958.0,60937.0,0.002]
[1726684921688,0.023,60960.0,60940.0,0.00467666]
[1726684921949,0.023,60960.0,60938.0,0.0063654]
[1726684921950,0.023,60960.0,60939.0,0.00479721]
[1726684922164,0.023,60960.0,60938.0,0.0063654]
[1726684922165,0.02572842,60956.0,60938.0,0.0063654]
[1726684922380,0.02572842,60956.0,60948.0,0.44015298]
[1726684922607,0.02572842,60956.0,60955.0,0.93231798]
[1726684922826,0.02572842,60956.0,60955.0,0.60420798]
[1726684923050,0.16399,60980.0,60962.0,0.164034]
[1726684923273,0.02572143,60973.0,60961.0,0.1]
[1726684923500,0.02572143,60973.0,60963.0,0.00504464]
[1726684923725,0.18972843,60973.0,60963.0,0.00504464]
[1726684923934,0.02572143,60973.0,60945.0,0.164082]
[1726684924161,0.02572143,60973.0,60964.0,0.16852875]
[1726684924383,0.02572143,60973.0,60946.0,5.05328087]
[1726684924384,0.02572143,60973.0,60959.0,0.002]
[1726684924607,0.1,60971.0,60965.0,0.00449875]
[1726684924827,0.1,60971.0,60949.0,0.002]
[1726684924828,0.32807,60963.0,60949.0,0.002]
[1726684925040,0.1,60966.0,60936.0,0.002]
[1726684925041,0.44015298,60958.0,60936.0,0.002]
[1726684925260,0.3281,60957.0,60936.0,0.002]
[1726684925476,0.02573043,60959.0,60945.0,0.002]
[1726684925942,0.02573043,60959.0,60953.0,0.002]
[1726684926166,0.02573043,60959.0,60945.0,0.002]
[1726684926387,0.023,60958.0,60945.0,0.002]
[1726684926598,0.164081,60946.0,60942.0,0.002]
[1726684926815,0.164074,60948.0,60938.0,0.0063654]
[1726684927061,0.492255,60944.0,60943.0,0.00449875]
[1726684927279,0.164088,60943.0,60938.0,0.0063654]
[1726684927706,0.023,60945.0,60938.0,0.0063654]
[1726684927928,0.023,60943.0,60942.0,0.014]
[1726684928146,0.023,60942.0,60938.0,0.0063654]
[1726684928366,0.187098,60939.0,60938.0,0.0063654]
[1726684928587,0.0257327,60946.0,60938.0,0.0063654]
[1726684928803,0.492295,60939.0,60938.0,0.0063654]
[1726684929020,0.16305367,60939.0,60938.0,0.0083654]
[1726684929235,0.65534867,60939.0,60938.0,0.0063654]
[1726684929449,1.00654567,60939.0,60938.0,0.0063654]
[1726684929699,2.00908948,60939.0,60938.0,0.0063654]
[1726684929914,1.46048006,60939.0,60938.0,0.0063654]
[1726684930133,1.13228306,60939.0,60938.0,0.0203654]
[1726684930352,1.13228306,60939.0,60931.0,0.0001]
[1726684930353,0.515351,60932.0,60931.0,0.0001]
[1726684930579,1.87502565,60932.0,60931.0,0.0001]
[1726684930821,1.10663867,60932.0,60931.0,0.0001]
[1726684931030,1.54679165,60932.0,60931.0,0.0001]
[1726684931241,1.9007681,60932.0,60931.0,0.0001]
[1726684931863,1.4725341,60932.0,60931.0,0.0001]
[1726684932144,0.21579612,60932.0,60931.0,0.0001]
[1726684932349,0.19279612,60932.0,60931.0,0.0001]
[1726684932995,0.35691312,60932.0,60931.0,0.0001]
[1726684933210,0.19279612,60932.0,60931.0,0.000924]
[1726684933439,0.19279612,60932.0,60931.0,0.002924]
[1726684933652,0.24614981,60943.0,60931.0,0.331164]
[1726684933865,0.24614981,60936.0,60935.0,0.002]
[1726684934124,0.16305367,60936.0,60932.0,0.00665769]
[1726684934341,0.16305367,60933.0,60931.0,0.000924]
[1726684934541,0.44015298,60942.0,60931.0,0.000924]
[1726684934542,0.32717067,60932.0,60931.0,0.000924]
[1726684934756,0.65640467,60932.0,60931.0,0.000924]
[1726684934970,1.00663867,60932.0,60931.0,0.000424]
[1726684935619,1.33487267,60932.0,60931.0,0.000424]
[1726684935826,1.00663867,60932.0,60931.0,0.000424]
[1726684936506,0.68114606,60932.0,60931.0,0.000424]
[1726684936728,0.70414606,60932.0,60931.0,0.000424]
[1726684936951,1.00938006,60932.0,60931.0,0.000424]
[1726684937226,1.03338006,60932.0,60931.0,0.006424]
[1726684937447,1.46061406,60932.0,60931.0,0.000424]
[1726684937865,1.43861406,60932.0,60931.0,0.007424]
[1726684938088,0.68114606,60932.0,60931.0,0.000424]
[1726684938596,0.98463867,60932.0,60931.0,0.006424]
[1726684938776,1.31187267,60932.0,60931.0,0.000424]
[1726684939024,0.32717067,60932.0,60931.0,0.000424]
[1726684939239,0.16305367,60932.0,60931.0,0.000424]
[1726684939448,0.98363867,60932.0,60931.0,0.000424]
[1726684939674,0.98463867,60932.0,60931.0,0.006424]
[1726684940322,1.41287267,60932.0,60931.0,0.006424]
[1726684940532,1.76410667,60932.0,60931.0,0.006424]
[1726684940742,1.41287267,60932.0,60931.0,0.006424]
[1726684940973,1.41287267,60932.0,60931.0,0.005924]
[1726684941191,0.16405367,60932.0,60931.0,0.005924]
[1726684941407,0.32817067,60932.0,60931.0,0.005924]
[1726684941619,0.65640467,60932.0,60931.0,0.0107492]
[1726684941827,0.65640467,60932.0,60931.0,0.005924]
[1726684942039,1.31287267,60932.0,60931.0,0.005924]
[1726684942310,1.31287267,60932.0,60924.0,0.000824]
[1726684942565,1.88215865,60925.0,60924.0,0.000824]
[1726684942763,0.820962,60904.0,60890.0,0.0001]
[1726684942977,0.98401567,60904.0,60890.0,0.0001]
[1726684943191,0.98401567,60904.0,60903.0,0.002824]
[1726684943192,0.16305367,60904.0,60903.0,0.002824]
[1726684943407,0.18880261,60904.0,60903.0,0.002824]
[1726684943619,0.16305367,60904.0,60903.0,0.17192231]
[1726684943836,0.16305367,60904.0,60903.0,0.167019]
[1726684944048,0.16305367,60904.0,60903.0,0.00772827]
[1726684944269,0.15305367,60904.0,60903.0,0.00572827]
[1726684944702,0.64563067,60904.0,60903.0,0.000824]
[1726684944888,1.30240067,60904.0,60903.0,0.000824]
[1726684945141,0.97501567,60904.0,60903.0,0.009824]
[1726684945349,0.99801567,60904.0,60903.0,0.009824]
[1726684945560,0.99701567,60904.0,60903.0,0.000824]
[1726684945766,0.99801567,60904.0,60903.0,0.009824]
[1726684946185,1.32540067,60904.0,60903.0,0.000824]
[1726684946396,1.32640067,60904.0,60903.0,0.009824]
[1726684946607,0.15405367,60904.0,60903.0,0.009824]
[1726684946817,0.25405367,60904.0,60903.0,0.011324]
[1726684947248,0.101,60904.0,60903.0,0.275519]
[1726684947478,0.02574991,60907.0,60906.0,0.494561]
[1726684947688,0.24629126,60917.0,60916.0,0.002]
[1726684947901,0.40934493,60917.0,60915.0,0.002]
[1726684948112,0.16305367,60917.0,60916.0,0.59448]
[1726684948535,0.16305367,60917.0,60916.0,0.9228]
[1726684948746,0.16305367,60917.0,60916.0,0.102]
[1726684949173,0.16305367,60917.0,60916.0,0.002]
[1726684949609,0.16405367,60917.0,60916.0,0.18016]
[1726684949841,0.16305367,60917.0,60916.0,0.16616]
[1726684950057,0.16305367,60917.0,60916.0,0.102]
[1726684950275,0.16405367,60917.0,60916.0,0.116]
[1726684950484,0.16405367,60917.0,60916.0,0.002]
[1726684950485,0.16305367,60917.0,60916.0,0.002]
[1726684950697,0.16305367,60917.0,60916.0,0.00637696]
[1726684950916,0.16305367,60917.0,60902.0,0.001839]
[1726684951197,0.02574069,60923.0,60902.0,0.001839]
[1726684951198,0.16305367,60908.0,60902.0,0.001839]
[1726684951421,0.16305367,60904.0,60902.0,0.001839]
[1726684952073,0.98401567,60904.0,60902.0,0.001839]
[1726684952537,0.16305367,60904.0,60903.0,0.005824]
[1726684952759,0.32724567,60904.0,60903.0,0.005824]
[1726684952974,0.16305367,60904.0,60902.0,0.001839]
[1726684953188,0.32724867,60903.0,60902.0,0.001839]
[1726684953406,0.98403067,60903.0,60902.0,0.001839]
[1726684954076,0.16305367,60903.0,60902.0,0.001839]
[1726684954503,0.18880494,60903.0,60902.0,0.001839]
[1726684954717,0.65563967,60903.0,60902.0,0.001839]
[1726684955162,0.98403067,60903.0,60902.0,0.001839]
[1726684955379,1.00703067,60903.0,60902.0,0.001839]
[1726684955593,1.77557465,60903.0,60902.0,0.001839]
[1726684956245,1.80133034,60903.0,60902.0,0.003839]
[1726684956460,1.80133034,60903.0,60902.0,0.002663]
[1726684956678,2.25972134,60903.0,60902.0,0.002663]
[1726684957107,2.22972134,60903.0,60902.0,0.002663]
[1726684957320,1.90133034,60903.0,60902.0,0.002663]
[1726684957648,1.00978636,60903.0,60902.0,0.002663]
[1726684957753,1.00978636,60903.0,60902.0,0.002163]
[1726684957973,0.98403067,60903.0,60902.0,0.002163]
[1726684958415,1.33542167,60903.0,60902.0,0.002163]
[1726684959153,1.31242167,60903.0,60902.0,0.002163]
[1726684959620,0.32724867,60903.0,60902.0,0.002163]
[1726684959837,0.98403067,60903.0,60902.0,0.002163]
[1726684960261,1.31242167,60903.0,60902.0,0.002163]
[1726684960485,1.31442167,60903.0,60902.0,0.002163]
[1726684960705,1.66381267,60903.0,60902.0,0.002163]
[1726684960922,1.43542167,60903.0,60902.0,0.002163]
[1726684961138,1.79381267,60903.0,60902.0,0.002163]
[1726684961601,0.164252,60882.0,60881.0,0.24945011]
[1726684961824,0.164279,60872.0,60871.0,0.0001]
[1726684962052,1.33600667,60872.0,60871.0,0.0001]
[1726684962503,1.36177148,60872.0,60871.0,0.0001]
[1726684962788,1.46177148,60872.0,60871.0,0.0001]
[1726684963004,1.82032948,60872.0,60871.0,0.0001]
[1726684963214,1.49177148,60872.0,60871.0,0.0001]
[1726684963433,0.82157,60859.0,60858.0,0.24221931]
[1726684963659,0.492999,60852.0,60851.0,0.0001]
[1726684963880,0.98471867,60852.0,60851.0,0.0001]
[1726684964362,1.004677,60851.0,60850.0,0.79756813]
[1726684964605,1.632141,60846.0,60845.0,0.0093716]
[1726684964848,1.632141,60846.0,60845.0,0.0043716]
[1726684964849,1.43649667,60846.0,60845.0,0.0043716]
[1726684965085,1.46649667,60846.0,60845.0,0.0043716]
[1726684965355,1.74365198,60843.0,60831.0,0.0001]
[1726684965625,2.26541965,60843.0,60831.0,0.0001]